bitfinex/quotes_BTCUSD_20220304
["timestamp","ask_amount","ask_price","bid_price","bid_amount"]
[1646432889269,0.38304118,38786.0,38785.0,0.01039495]
[1646432889470,0.48272213,38786.0,38785.0,0.01039495]
[1646432889871,0.5002357,38786.0,38785.0,0.01039495]
[1646432890072,0.378753,38786.0,38783.0,0.48564043]
[1646432890279,0.378753,38786.0,38785.0,0.18960505]
[1646432890280,1.78783535,38786.0,38785.0,0.18960505]
[1646432890475,1.78783535,38786.0,38783.0,0.48564043]
[1646432890675,1.49422617,38784.0,38783.0,0.350189]
[1646432890880,0.378753,38784.0,38783.0,0.28286782]
[1646432891074,0.0674105,38786.0,38783.0,0.28286782]
[1646432891279,0.378753,38790.0,38783.0,0.28286782]
[1646432891479,0.004,38791.0,38787.0,0.15]
[1646432891744,0.2464377,38813.0,38783.0,0.28286782]
[1646432891745,0.378753,38805.0,38788.0,0.3]
[1646432891941,0.37958669,38805.0,38783.0,0.28286782]
[1646432892145,0.37958669,38805.0,38784.0,0.3]
[1646432892146,0.00083369,38805.0,38784.0,0.3]
[1646432892440,0.378753,38804.0,38784.0,0.3]
[1646432892644,0.00083369,38805.0,38790.0,0.00011318]
[1646432892840,0.378753,38804.0,38790.0,0.00011318]
[1646432893242,0.373753,38804.0,38790.0,0.00011318]
[1646432893441,0.373753,38804.0,38784.0,0.9136811]
[1646432893643,0.373753,38804.0,38784.0,0.7636811]
[1646432893644,0.3,38803.0,38784.0,0.7636811]
[1646432893843,0.3,38803.0,38793.0,0.00011317]
[1646432894040,0.28932,38800.0,38793.0,0.00011317]
[1646432894241,0.37872,38799.0,38793.0,0.00011317]
[1646432894440,0.32866775,38799.0,38793.0,0.00011317]
[1646432894640,0.28932,38795.0,38793.0,0.00011317]
[1646432894842,0.37872,38794.0,38790.0,0.08]
[1646432895243,0.42872,38794.0,38790.0,0.076]
[1646432895459,0.26547317,38791.0,38790.0,0.076]
[1646432895660,0.26547317,38791.0,38757.0,0.15]
[1646432895661,0.378719,38790.0,38757.0,0.15]
[1646432895860,0.378719,38790.0,38754.0,0.00020308]
[1646432895861,0.378719,38785.0,38754.0,0.00020308]
[1646432896061,0.30266652,38775.0,38754.0,0.00020308]
[1646432896261,0.378719,38774.0,38754.0,0.00020308]
[1646432896463,0.378719,38774.0,38769.0,0.05122017]
[1646432896864,0.378719,38774.0,38769.0,0.04622017]
[1646432897062,0.37192357,38774.0,38769.0,0.04622017]
[1646432897262,0.36462774,38774.0,38769.0,0.03622017]
[1646432897864,0.28932,38770.0,38769.0,0.01622017]
[1646432898166,0.37883,38770.0,38769.0,0.00122017]
[1646432898362,0.47883,38770.0,38768.0,0.09622017]
[1646432898565,0.50707185,38770.0,38768.0,0.09622017]
[1646432898767,0.39159868,38770.0,38768.0,0.09622017]
[1646432899213,0.49159868,38770.0,38768.0,0.09622017]
[1646432899411,0.37883,38766.0,38754.0,0.00020308]
[1646432899609,0.52883,38764.0,38754.0,0.00020308]
[1646432899910,0.37883,38764.0,38754.0,0.00020308]
[1646432900112,0.37883,38764.0,38751.0,0.29455755]
[1646432900411,0.14119908,38767.0,38750.0,0.15380547]
[1646432900412,0.28932,38753.0,38750.0,0.15380547]
[1646432900611,0.37383,38752.0,38750.0,0.15380547]
[1646432900913,0.37227655,38752.0,38750.0,0.15380547]
[1646432901310,0.15208633,38767.0,38751.0,0.378916]
[1646432901311,0.58932,38766.0,38751.0,0.378916]
[1646432901517,0.3144443,38766.0,38750.0,0.15380547]
[1646432901709,0.378916,38765.0,38750.0,0.15380547]
[1646432901911,0.01363706,38765.0,38751.0,0.278908]
[1646432902112,0.00958189,38765.0,38750.0,0.15380547]
[1646432902412,0.00958189,38765.0,38754.0,0.00010196]
[1646432902413,0.378887,38765.0,38754.0,0.00010196]
[1646432902811,0.378887,38763.0,38754.0,0.00010196]
[1646432903062,0.378887,38761.0,38754.0,0.00010196]
[1646432903257,0.378887,38761.0,38750.0,0.15380547]
[1646432903656,6.76676534,38770.0,38750.0,0.15380547]
[1646432903657,0.378887,38767.0,38750.0,0.15380547]
[1646432903857,0.403887,38767.0,38750.0,0.15380547]
[1646432904073,0.34677154,38767.0,38763.0,0.00016296]
[1646432905059,0.32177154,38767.0,38763.0,0.00016296]
[1646432905458,0.37886,38766.0,38763.0,0.00016296]
[1646432906060,0.00426506,38765.0,38763.0,0.00016296]
[1646432906260,0.37886,38764.0,38763.0,0.00016296]
[1646432908207,0.37386,38764.0,38763.0,0.00016296]
[1646432908406,0.36038743,38764.0,38763.0,0.00016296]
[1646432908806,0.38719018,38764.0,38763.0,0.00016296]
[1646432909006,0.38719018,38764.0,38763.0,6.231e-05]
[1646432909007,0.53719018,38764.0,38763.0,6.231e-05]
[1646432909406,0.00010307,38759.0,38750.0,0.15380547]
[1646432909708,0.37886,38758.0,38750.0,0.15380547]
[1646432909905,0.40386,38758.0,38750.0,0.15380547]
[1646432910106,0.40386,38758.0,38750.0,0.06880547]
[1646432910557,0.11547317,38757.0,38750.0,0.04380547]
[1646432910758,0.378906,38756.0,38755.0,0.001486]
[1646432910955,0.37373638,38756.0,38755.0,0.001486]
[1646432911157,0.37373638,38756.0,38750.0,0.03380547]
[1646432911158,0.00184283,38754.0,38750.0,0.03380547]
[1646432911458,0.378906,38753.0,38750.0,0.03380547]
[1646432911861,0.303906,38753.0,38750.0,0.03380547]
[1646432913857,0.303906,38753.0,38741.0,1.73543361]
[1646432913858,0.25318952,38753.0,38741.0,1.73543361]
[1646432914057,0.00184283,38754.0,38741.0,1.73043361]
[1646432914316,0.378943,38753.0,38741.0,1.73043361]
[1646432914525,0.00184283,38754.0,38741.0,1.73043361]
[1646432914718,0.3,38761.0,38742.0,0.0030541]
[1646432915018,0.3,38761.0,38741.0,1.73348771]
[1646432915019,0.1722959,38756.0,38741.0,1.73348771]
[1646432915222,0.378943,38755.0,38741.0,1.73348771]
[1646432915419,0.403943,38755.0,38741.0,1.73348771]
[1646432915619,0.403943,38755.0,38748.0,0.00010198]
[1646432916418,0.403943,38755.0,38741.0,1.73043361]
[1646432916619,0.0004895,38742.0,38741.0,1.73043361]
[1646432916820,0.0004895,38742.0,38741.0,1.86933361]
[1646432917023,0.0004895,38742.0,38741.0,1.89468361]
[1646432917419,0.0004895,38742.0,38741.0,1.88378361]
[1646432917823,0.025,38760.0,38741.0,1.88378361]
[1646432918061,0.20071508,38790.0,38741.0,1.88378361]
[1646432918062,0.01297242,38773.0,38749.0,0.0284041]
[1646432918260,0.01297242,38773.0,38750.0,0.02535]
[1646432918261,0.1469459,38773.0,38750.0,0.02535]
[1646432918460,0.01200045,38777.0,38750.0,0.02255]
[1646432918663,0.01200045,38777.0,38749.0,0.0030541]
[1646432918664,0.2713,38767.0,38751.0,0.378943]
[1646432918861,0.2963,38767.0,38752.0,0.678943]
[1646432919061,0.2963,38767.0,38753.0,0.3]
[1646432919062,0.2713,38767.0,38753.0,0.3]
[1646432919261,0.3659459,38767.0,38755.0,0.00010196]
[1646432919461,0.1469459,38766.0,38765.0,0.00451857]
[1646432919666,0.219,38767.0,38755.0,0.00010196]
[1646432919667,0.0038317,38760.0,38755.0,0.00010196]
[1646432920062,0.219,38767.0,38749.0,0.02535]
[1646432920261,0.219,38767.0,38754.0,0.00010196]
[1646432920664,0.002,38766.0,38755.0,0.0030541]
[1646432920864,0.002,38766.0,38757.0,0.0030541]
[1646432921164,0.002,38766.0,38759.0,0.0030541]
[1646432921363,5.95086396,38770.0,38756.0,0.02535]
[1646432921564,5.95086396,38770.0,38758.0,0.00010195]
[1646432922216,4.95196396,38770.0,38759.0,0.0030541]
[1646432922409,4.95196396,38770.0,38756.0,0.02535]
[1646432922608,4.95196396,38770.0,38761.0,0.0030541]
[1646432922808,4.95196396,38770.0,38760.0,0.00010194]
[1646432923008,4.95196396,38770.0,38762.0,0.0284041]
[1646432923009,4.12436396,38770.0,38762.0,0.0284041]
[1646432923210,4.12436396,38770.0,38769.0,6.62535]
[1646432923508,4.12436396,38770.0,38769.0,7.004293]
[1646432923509,3.83266396,38770.0,38769.0,7.004293]
[1646432923712,2.83376396,38770.0,38769.0,7.004293]
[1646432923911,0.47296396,38770.0,38769.0,7.004293]
[1646432924110,0.01549003,38792.0,38769.0,6.62535]
[1646432924414,0.00847977,38792.0,38771.0,0.80905]
[1646432924610,0.1469459,38791.0,38773.0,0.02535]
[1646432924818,0.00847977,38792.0,38773.0,0.02535]
[1646432925015,0.00847977,38792.0,38773.0,0.0284041]
[1646432925209,0.1469459,38796.0,38778.0,0.0001019]
[1646432925462,0.378943,38795.0,38778.0,0.0001019]
[1646432925861,0.1469459,38796.0,38774.0,6.114e-05]
[1646432926062,0.15,38796.0,38776.0,0.02535]
[1646432926462,0.378943,38795.0,38783.0,0.00010188]
[1646432927068,0.01654696,38800.0,38783.0,0.00010188]
[1646432927266,0.01437333,38804.0,38781.0,0.02535]
[1646432927480,0.35243653,38813.0,38781.0,0.80905]
[1646432927481,0.0168599,38808.0,38781.0,0.80905]
[1646432927670,0.0168599,38808.0,38785.0,9.551e-05]
[1646432927671,0.20071508,38805.0,38785.0,9.551e-05]
[1646432927868,0.15,38809.0,38785.0,9.551e-05]
[1646432927869,0.20071508,38807.0,38785.0,9.551e-05]
[1646432928067,0.15,38807.0,38785.0,9.551e-05]
[1646432928267,0.15,38802.0,38785.0,9.551e-05]
[1646432928469,0.15,38802.0,38786.0,0.378943]
[1646432928669,0.15,38802.0,38792.0,9.549e-05]
[1646432929067,0.30029222,38806.0,38781.0,0.4854]
[1646432929068,0.00010953,38791.0,38781.0,0.4854]
[1646432929330,0.00010953,38791.0,38789.0,0.001]
[1646432929728,0.00157412,38785.0,38782.0,0.02535]
[1646432929928,0.00157412,38785.0,38783.0,0.378943]
[1646432930628,0.00157412,38785.0,38784.0,0.378943]
[1646432931029,0.00157412,38785.0,38780.0,0.7873]
[1646432931232,0.00157412,38785.0,38780.0,0.00508955]
[1646432931431,0.378943,38784.0,38780.0,0.00508955]
[1646432931633,0.15157412,38785.0,38780.0,0.00508955]
[1646432931932,0.00157412,38785.0,38780.0,0.00508955]
[1646432932133,0.00157412,38785.0,38780.0,0.005]
[1646432932735,0.378943,38784.0,38780.0,0.005]
[1646432932953,0.39399854,38782.0,38780.0,0.005]
[1646432933158,0.378943,38782.0,38780.0,0.005]
[1646432933356,0.378943,38782.0,38774.0,0.001]
[1646432933556,0.0174818,38785.0,38778.0,8.956e-05]
[1646432933759,0.378943,38784.0,38778.0,8.956e-05]
[1646432934254,0.00157412,38785.0,38778.0,8.956e-05]
[1646432934455,0.00157412,38785.0,38783.0,0.77316968]
[1646432934655,0.33050461,38784.0,38783.0,0.77316968]
[1646432935460,0.50585461,38784.0,38783.0,0.77316968]
[1646432935657,0.48050461,38784.0,38783.0,0.77316968]
[1646432936557,0.50585461,38784.0,38783.0,0.0676786]
[1646432936807,0.48050461,38784.0,38783.0,0.0676786]
[1646432937008,0.0835146,38781.0,38770.0,0.771]
[1646432937219,0.528943,38780.0,38770.0,0.771]
[1646432937609,0.01508678,38779.0,38770.0,0.771]
[1646432937812,0.528943,38780.0,38770.0,0.771]
[1646432937813,0.01335643,38777.0,38770.0,0.771]
[1646432938011,0.378788,38776.0,38770.0,0.771]
[1646432938609,0.37314137,38776.0,38770.0,0.771]
[1646432939013,0.37314137,38776.0,38771.0,0.30151804]
[1646432939410,0.39849137,38776.0,38771.0,0.30151804]
[1646432939612,0.37314137,38776.0,38772.0,8.621e-05]
[1646432939813,0.00253313,38772.0,38770.0,0.771]
[1646432940011,0.00253313,38772.0,38770.0,1.07251804]
[1646432940317,0.00253313,38772.0,38770.0,0.771]
[1646432940318,0.378825,38771.0,38770.0,0.771]
[1646432940581,0.404175,38771.0,38769.0,6.6]
[1646432940781,0.378825,38771.0,38769.0,6.6]
[1646432940981,0.528825,38770.0,38769.0,6.6]
[1646432941385,0.15253313,38772.0,38769.0,6.6]
[1646432941582,0.15253313,38772.0,38770.0,0.5]
[1646432941781,0.00253313,38772.0,38770.0,0.5]
[1646432942181,0.528825,38771.0,38770.0,0.5]
[1646432942990,0.15,38771.0,38770.0,0.495]
[1646432943885,0.15853313,38772.0,38769.0,6.53053888]
[1646432944084,0.60585986,38781.0,38780.0,0.2259937]
[1646432944320,0.40514478,38781.0,38780.0,0.2259937]
[1646432945110,0.378825,38777.0,38770.0,0.7833]
[1646432945512,0.378825,38777.0,38770.0,1.08643994]
[1646432945910,0.378825,38777.0,38770.0,0.7833]
[1646432946109,0.378825,38777.0,38770.0,1.08643994]
[1646432946312,0.378825,38777.0,38770.0,0.7833]
[1646432946709,0.378825,38777.0,38771.0,0.30313994]
[1646432947312,0.378825,38777.0,38770.0,0.78338083]
[1646432947711,0.378825,38777.0,38770.0,0.7833]
[1646432947955,0.29863902,38778.0,38770.0,0.78338083]
[1646432948359,0.29863902,38778.0,38772.0,0.001486]
[1646432949963,0.378825,38777.0,38772.0,0.001486]
[1646432950360,0.28572235,38778.0,38771.0,8.083e-05]
[1646432951161,0.28572235,38778.0,38770.0,0.683386]
[1646432951560,0.28572235,38778.0,38771.0,0.02543083]
[1646432951809,0.28572235,38778.0,38771.0,8.083e-05]
[1646432952508,0.28294005,38778.0,38771.0,0.02535]
[1646432952713,0.28294005,38778.0,38771.0,0.02543083]
[1646432952911,0.28294005,38778.0,38772.0,0.001486]
[1646432954607,0.28294005,38778.0,38772.0,0.002972]
[1646432956669,0.28294005,38778.0,38770.0,0.02535]
[1646432957666,0.28294005,38778.0,38769.0,6.5408407]
[1646432959067,0.28294005,38778.0,38769.0,6.5154907]
[1646432959909,0.28294005,38778.0,38770.0,7.578e-05]
[1646432960909,0.27854005,38778.0,38769.0,6.5154907]
[1646432961213,0.27854005,38778.0,38770.0,0.02542578]
[1646432961412,0.27854005,38778.0,38770.0,7.578e-05]
[1646432961609,0.27854005,38778.0,38772.0,0.001486]
[1646432961610,0.15354005,38778.0,38772.0,0.001486]
[1646432962111,0.11031938,38778.0,38772.0,0.001486]
[1646432963162,0.09531938,38778.0,38772.0,0.001486]
[1646432963766,0.378825,38776.0,38772.0,0.001486]
[1646432963963,0.378825,38777.0,38772.0,0.001486]
[1646432964362,0.278825,38777.0,38772.0,0.001486]
[1646432964565,0.378808,38777.0,38772.0,0.001486]
[1646432964966,0.323832,38777.0,38772.0,0.001486]
[1646432965164,0.378808,38777.0,38772.0,0.001486]
[1646432965365,0.20071508,38776.0,38772.0,0.001486]
[1646432965565,0.20071508,38777.0,38772.0,0.001486]
[1646432966269,0.29603446,38778.0,38772.0,0.001486]
[1646432966463,0.378808,38777.0,38772.0,0.001486]
[1646432966714,0.29603446,38778.0,38772.0,0.001486]
[1646432966914,0.20071508,38777.0,38772.0,0.001486]
[1646432967714,0.29603446,38778.0,38772.0,0.001486]
[1646432967915,0.378808,38777.0,38772.0,0.001486]
[1646432968114,0.29603446,38778.0,38772.0,0.001486]
[1646432968517,0.37358095,38777.0,38772.0,0.001486]
[1646432968715,0.56876645,38777.0,38772.0,0.001486]
[1646432969115,0.56832717,38777.0,38772.0,0.001486]
[1646432969315,0.20071508,38774.0,38769.0,6.5154907]
[1646432969515,0.25089385,38777.0,38771.0,7.578e-05]
[1646432969715,0.62971985,38777.0,38771.0,7.578e-05]
[1646432969917,0.25121323,38778.0,38771.0,7.578e-05]
[1646432970317,0.378813,38776.0,38771.0,7.578e-05]
[1646432970564,0.378813,38777.0,38770.0,0.12907]
[1646432970766,0.378813,38778.0,38771.0,7.578e-05]
[1646432971368,0.68154267,38778.0,38771.0,7.578e-05]
[1646432971668,0.378813,38778.0,38769.0,6.5154907]
[1646432971866,0.378813,38777.0,38770.0,0.064537]
[1646432972067,0.378813,38777.0,38769.0,6.5154907]
[1646432972068,0.378813,38777.0,38771.0,7.578e-05]
[1646432972870,0.68154267,38777.0,38769.0,6.5154907]
[1646432973072,0.30272967,38778.0,38769.0,6.5154907]
[1646432973271,0.378813,38777.0,38769.0,6.5154907]
[1646432973471,0.30272967,38777.0,38769.0,6.5154907]
[1646432973671,0.30772967,38778.0,38769.0,6.5154907]
[1646432973872,0.68154267,38777.0,38769.0,5.95100609]
[1646432974071,0.30272967,38776.0,38769.0,5.95100609]
[1646432974314,0.30272967,38777.0,38769.0,5.95100609]
[1646432974611,0.30272967,38776.0,38769.0,5.95100609]
[1646432974810,0.30272967,38776.0,38769.0,5.93600609]
[1646432975010,0.30272967,38776.0,38769.0,6.06508909]
[1646432975512,0.30272967,38776.0,38769.0,6.06516487]
[1646432975713,0.30272967,38775.0,38769.0,6.06516487]
[1646432976112,0.20272967,38775.0,38769.0,6.06516487]
[1646432976312,0.02535,38776.0,38769.0,6.06516487]
[1646432976313,0.02535,38774.0,38769.0,6.06516487]
[1646432976513,0.02535,38774.0,38769.0,6.06508909]
[1646432976716,0.02535,38774.0,38769.0,5.35945731]
[1646432977114,0.02535,38774.0,38769.0,5.48854031]
[1646432977314,0.37852735,38774.0,38769.0,5.48854031]
[1646432977527,0.0134609,38776.0,38769.0,5.48854031]
[1646432977528,0.02535,38772.0,38769.0,5.48854031]
[1646432977719,0.35317735,38773.0,38769.0,4.39935731]
[1646432977720,0.02535,38770.0,38769.0,4.39935731]
[1646432977969,0.02535,38770.0,38769.0,3.11960138]
[1646432977970,0.73837459,38770.0,38769.0,3.11960138]
[1646432978171,0.56354998,38770.0,38769.0,2.12170138]
[1646432978369,0.78840428,38770.0,38769.0,0.16560138]
[1646432978574,0.02535,38762.0,38747.0,0.378813]
[1646432978968,0.02535,38762.0,38750.0,0.378813]
[1646432979571,0.02535,38758.0,38750.0,0.378813]
[1646432980268,0.02535,38752.0,38750.0,0.378813]
[1646432980672,0.2025487,38757.0,38750.0,0.378969]
[1646432980673,6.62535,38751.0,38750.0,0.378969]
[1646432980868,6.62035,38751.0,38745.0,0.378969]
[1646432981072,6.62035,38751.0,38744.0,0.001]
[1646432981073,6.62035,38746.0,38744.0,0.001]
[1646432981270,0.3498639,38745.0,38742.0,0.0001]
[1646432981468,6.62035,38743.0,38742.0,0.0001]
[1646432981724,6.999329,38743.0,38742.0,0.0001]
[1646432982323,6.999329,38743.0,38741.0,1.04803361]
[1646432982525,0.9788429,38742.0,38741.0,0.04991452]
[1646432982722,1.19092118,38742.0,38741.0,0.18881452]
[1646432982924,2.49259005,38742.0,38739.0,0.00068105]
[1646432983125,8.5542181,38741.0,38738.0,0.08494254]
[1646432983332,7.783029,38739.0,38738.0,0.02982192]
[1646432983625,7.049329,38739.0,38736.0,0.001]
[1646432983823,0.60673341,38738.0,38736.0,0.001]
[1646432984022,1.7797275,38738.0,38736.0,0.001]
[1646432984223,0.72268845,38738.0,38736.0,0.001]
[1646432984424,1.53888235,38738.0,38736.0,0.001]
[1646432984626,1.53772196,38738.0,38736.0,0.001]
[1646432984824,1.78319196,38738.0,38736.0,0.001]
[1646432985025,2.27364536,38738.0,38736.0,0.001]
[1646432985326,2.26719436,38738.0,38736.0,0.001]
[1646432985590,2.03570223,38738.0,38736.0,0.001]
[1646432985794,1.18404448,38738.0,38736.0,0.001]
[1646432985989,0.00613821,38735.0,38734.0,0.001]
[1646432986189,6.62648821,38735.0,38734.0,0.001]
[1646432986390,6.62648821,38735.0,38734.0,0.00107111]
[1646432986592,8.34566041,38735.0,38732.0,0.002]
[1646432986791,6.595,38733.0,38732.0,0.002]
[1646432986990,7.783029,38733.0,38732.0,0.002]
[1646432987192,8.37594725,38733.0,38732.0,0.002]
[1646432987392,8.51986725,38733.0,38732.0,0.002]
[1646432987691,8.6667544,38733.0,38732.0,0.002]
[1646432987892,8.6667544,38733.0,38722.0,0.00487]
[1646432987893,8.82079765,38733.0,38722.0,0.00487]
[1646432988091,0.90905,38732.0,38722.0,0.00487]
[1646432988289,8.0470334,38731.0,38722.0,0.00487]
[1646432988491,8.37923033,38731.0,38730.0,0.0051637]
[1646432988698,7.34317765,38731.0,38730.0,0.0051637]
[1646432988893,7.34317765,38731.0,38729.0,0.14650369]
[1646432989094,0.7993544,38730.0,38729.0,0.14650369]
[1646432989314,2.09848363,38730.0,38729.0,0.10950369]
[1646432989514,1.188029,38729.0,38727.0,6.667e-05]
[1646432989717,1.188029,38729.0,38714.0,0.001]
[1646432989718,0.80905,38725.0,38720.0,0.04870409]
[1646432989913,6.989329,38721.0,38720.0,0.04870409]
[1646432990314,6.989329,38721.0,38720.0,0.04370409]
[1646432990315,7.6375584,38721.0,38720.0,0.04370409]
[1646432990513,8.61008039,38721.0,38720.0,0.03870409]
[1646432990814,7.83932554,38721.0,38720.0,0.03870409]
[1646432991118,7.7393242,38721.0,38720.0,0.03870409]
[1646432991721,7.8393242,38721.0,38720.0,0.03870409]
[1646432992317,7.87852048,38721.0,38720.0,0.03870409]
[1646432992513,0.16208469,38714.0,38711.0,0.01]
[1646432992714,6.963979,38713.0,38711.0,0.01]
[1646432992974,6.585,38713.0,38711.0,0.01]
[1646432993173,6.7495194,38713.0,38711.0,0.01]
[1646432993576,6.74733165,38713.0,38711.0,0.01]
[1646432993877,7.25323174,38713.0,38711.0,0.01]
[1646432994275,6.74733165,38713.0,38711.0,0.01]
[1646432994675,6.79733165,38713.0,38709.0,0.11267081]
[1646432994882,0.02535,38710.0,38709.0,0.11273335]
[1646432995076,6.984329,38710.0,38709.0,0.11273335]
[1646432995276,6.60535,38710.0,38709.0,0.11273335]
[1646432995478,6.58,38710.0,38709.0,0.11273335]
[1646432995776,0.05424283,38713.0,38709.0,0.11267081]
[1646432995980,0.378979,38712.0,38710.0,0.32115698]
[1646432996181,0.16208469,38714.0,38709.0,0.11267081]
[1646432996479,0.15956269,38714.0,38709.0,0.11267081]
[1646432996715,0.15956269,38714.0,38704.0,0.33123698]
[1646432996716,0.12967908,38706.0,38704.0,0.004]
[1646432996916,0.12967908,38706.0,38705.0,0.00608]
[1646432998114,0.12967908,38706.0,38698.0,0.064654]
[1646432998115,0.378979,38705.0,38698.0,0.064654]
[1646432998316,0.373979,38705.0,38696.0,0.06132775]
[1646433000321,0.373979,38705.0,38696.0,0.31494475]
[1646433000564,6.58,38704.0,38696.0,0.31494475]
[1646433000766,0.3788,38703.0,38696.0,0.31494475]
[1646433000964,0.379119,38705.0,38696.0,0.31494475]
[1646433001965,0.379119,38705.0,38696.0,0.11494475]
[1646433002768,0.02535,38704.0,38696.0,0.11494475]
[1646433002964,0.379119,38703.0,38696.0,0.11494475]
[1646433003767,0.379119,38703.0,38696.0,0.24425675]
[1646433003965,0.12705722,38693.0,38692.0,0.001]
[1646433004909,0.50617522,38693.0,38692.0,0.001]
[1646433005110,0.12705722,38693.0,38692.0,0.001]
[1646433005312,0.4779431,38693.0,38692.0,0.001]
[1646433005711,0.0988251,38693.0,38692.0,0.001]
[1646433006109,0.0988251,38693.0,38690.0,0.20246808]
[1646433006309,0.0988251,38693.0,38692.0,0.001486]
[1646433006512,0.13727053,38693.0,38692.0,0.001486]
[1646433006912,0.13727053,38693.0,38691.0,0.201147]
[1646433007109,0.13727053,38693.0,38691.0,0.265804]
[1646433007309,0.13727053,38693.0,38691.0,0.15100404]
[1646433008579,0.13727053,38693.0,38691.0,0.00100404]
[1646433008773,0.13727053,38693.0,38692.0,0.001486]
[1646433009373,0.13727053,38693.0,38692.0,0.35473586]
[1646433009575,0.51638853,38693.0,38692.0,0.35473586]
[1646433009780,0.54173853,38693.0,38692.0,0.35485218]
[1646433009982,0.54173853,38693.0,38689.0,0.01]
[1646433009983,0.02535,38691.0,38689.0,0.01]
[1646433010179,0.3924598,38690.0,38689.0,0.01]
[1646433010377,0.4571498,38690.0,38689.0,0.01]
[1646433010684,0.91674464,38690.0,38689.0,0.01]
[1646433010877,0.76679846,38690.0,38689.0,0.01]
[1646433011178,1.0763933,38690.0,38689.0,0.01]
[1646433011377,1.0763933,38690.0,38686.0,0.02184127]
[1646433011580,0.379118,38685.0,38680.0,0.05406993]
[1646433011829,0.379118,38685.0,38680.0,0.05168483]
[1646433011830,2.62303148,38681.0,38680.0,0.05168483]
[1646433012021,2.63705324,38681.0,38680.0,0.04668483]
[1646433012223,2.63705324,38681.0,38671.0,0.002]
[1646433012224,2.77303148,38681.0,38671.0,0.002]
[1646433012422,0.00066916,38676.0,38671.0,0.002]
[1646433012626,0.379118,38673.0,38671.0,3.478e-05]
[1646433012824,1.59776284,38672.0,38671.0,3.478e-05]
[1646433013021,3.3808547,38672.0,38671.0,3.478e-05]
[1646433013422,3.37504708,38672.0,38671.0,3.478e-05]
[1646433013622,3.37504708,38672.0,38669.0,6.897e-05]
[1646433013623,0.82269046,38670.0,38669.0,6.897e-05]
[1646433013822,0.82269046,38670.0,38662.0,0.1]
[1646433013823,0.80745,38668.0,38662.0,0.05219725]
[1646433014023,2.89592908,38663.0,38662.0,0.05219725]
[1646433014221,2.64294708,38663.0,38662.0,0.05219725]
[1646433014421,2.64294708,38663.0,38651.0,0.001]
[1646433014422,0.02535,38660.0,38651.0,0.001]
[1646433014724,2.63888292,38657.0,38651.0,0.001]
[1646433015022,0.42031944,38657.0,38651.0,0.001]
[1646433015220,1.33410384,38657.0,38651.0,0.001]
[1646433015466,0.41031944,38657.0,38651.0,0.001]
[1646433015669,0.8541971,38657.0,38651.0,0.001]
[1646433015891,2.50299694,38657.0,38651.0,0.001]
[1646433016070,2.49879852,38657.0,38651.0,0.001]
[1646433016269,0.379118,38657.0,38651.0,0.001]
[1646433016478,2.49294708,38657.0,38656.0,0.02423371]
[1646433016668,2.49294708,38657.0,38635.0,0.21373864]
[1646433016669,0.02535,38648.0,38635.0,0.21373864]
[1646433016869,0.02535,38646.0,38639.0,0.064754]
[1646433017069,0.43296137,38649.0,38639.0,0.064754]
[1646433017469,0.379118,38648.0,38639.0,0.064754]
[1646433017669,0.379118,38648.0,38639.0,0.059754]
[1646433017872,0.43296137,38649.0,38639.0,0.059754]
[1646433017873,0.43296137,38649.0,38640.0,0.30959484]
[1646433018069,0.43296137,38649.0,38642.0,0.064734]
[1646433018271,0.00926053,38662.0,38639.0,0.064742]
[1646433018272,0.379118,38665.0,38647.0,0.194136]
[1646433018475,0.379118,38665.0,38648.0,0.30959484]
[1646433018988,0.379118,38664.0,38648.0,0.02535]
[1646433019224,0.064732,38664.0,38648.0,0.064708]
[1646433019425,0.379118,38663.0,38648.0,0.064708]
[1646433019625,0.0396924,38670.0,38647.0,0.194136]
[1646433019626,0.30959484,38669.0,38647.0,0.194136]
[1646433019826,0.0396924,38670.0,38648.0,0.22380904]
[1646433020130,9.24e-05,38670.0,38659.0,0.064703]
[1646433020325,0.24133002,38681.0,38660.0,0.02535]
[1646433020326,0.30959484,38680.0,38660.0,0.02535]
[1646433020528,0.03855263,38681.0,38660.0,0.02535]
[1646433020728,0.5,38680.0,38660.0,0.02535]
[1646433020928,0.80959484,38680.0,38660.0,0.02535]
[1646433021132,0.03855263,38681.0,38663.0,0.06471]
[1646433021325,0.03855263,38681.0,38655.0,0.064701]
[1646433021326,0.03855263,38681.0,38645.0,0.21989819]
[1646433021626,0.03855263,38681.0,38663.0,0.06471]
[1646433021829,0.03964239,38686.0,38664.0,0.68889084]
[1646433022027,0.03964239,38686.0,38665.0,0.7837]
[1646433022229,0.100437,38693.0,38665.0,0.7837]
[1646433022230,0.100437,38693.0,38667.0,0.064681]
[1646433022430,0.100437,38693.0,38669.0,0.09002001]
[1646433022627,0.100437,38693.0,38670.0,0.33494484]
[1646433022826,0.100437,38693.0,38672.0,0.02535]
[1646433023074,0.100437,38693.0,38674.0,0.80905]
[1646433023276,0.100437,38693.0,38679.0,0.064668]
[1646433023475,0.379296,38692.0,38680.0,0.02535]
[1646433023874,1.0,38689.0,38680.0,0.02535]
[1646433024077,1.0,38689.0,38671.0,0.194027]
[1646433024078,2.08847908,38681.0,38671.0,0.194027]
[1646433024278,2.08847908,38681.0,38659.0,0.769]
[1646433024279,0.379296,38678.0,38659.0,0.769]
[1646433024477,0.379296,38678.0,38659.0,0.79435]
[1646433024874,0.379296,38678.0,38659.0,0.923757]
[1646433025275,0.379296,38678.0,38661.0,0.873758]
[1646433025476,2.08847908,38679.0,38662.0,0.064704]
[1646433025477,0.379296,38677.0,38662.0,0.064704]
[1646433025675,0.15,38681.0,38663.0,0.30909681]
[1646433025676,0.5,38676.0,38663.0,0.30909681]
[1646433025874,0.5,38676.0,38660.0,0.30928572]
[1646433026074,0.5,38676.0,38664.0,0.913073]
[1646433026279,2.08847908,38689.0,38666.0,0.064692]
[1646433026476,0.379296,38688.0,38667.0,0.02535]
[1646433026718,0.379296,38688.0,38672.0,0.059685]
[1646433026917,0.30959484,38687.0,38672.0,0.059685]
[1646433027117,0.379296,38692.0,38672.0,0.059685]
[1646433027317,2.08847908,38692.0,38677.0,0.06468]
[1646433027525,0.379296,38691.0,38677.0,0.06468]
[1646433027721,0.30959484,38690.0,38677.0,0.06468]